bitfinex/quotes_SOLUSD_20251117
["timestamp","ask_amount","ask_price","bid_price","bid_amount"]
[1763397458411,0.66,135.32,135.25,27.90978769]
[1763397458611,0.66,135.32,135.28,11.91476325]
[1763397458905,0.66,135.32,135.3,11.91476325]
[1763397459303,0.66,135.32,135.29,11.91476325]
[1763397459513,12.57476325,135.32,135.25,27.90978769]
[1763397459822,11.91476325,135.31,135.23,18.12096]
[1763397460002,18.78096,135.31,135.27,11.91476325]
[1763397460205,0.66,135.3,135.28,11.91476325]
[1763397460500,12.57476325,135.33,135.26,9.78882769]
[1763397460704,12.57476325,135.32,135.27,11.91476325]
[1763397461096,12.57476325,135.31,135.23,4.56]
[1763397461407,11.91476325,135.29,135.24,11.91476325]
[1763397461797,0.69,135.28,135.24,11.91476325]
[1763397462214,0.69,135.28,135.25,11.91476325]
[1763397462813,0.69,135.28,135.2,14.34882769]
[1763397463022,11.91476325,135.27,135.22,11.91476325]
[1763397463223,11.91476325,135.25,135.21,11.91476325]
[1763397463415,11.91476325,135.25,135.17,9.78882769]
[1763397463728,4.56,135.28,135.22,11.91476325]
[1763397463903,9.78882769,135.3,135.24,11.91476325]
[1763397463904,18.12096,135.3,135.24,11.91476325]
[1763397464107,18.12096,135.3,135.2,32.46978769]
[1763397464108,0.69,135.29,135.26,11.91476325]
[1763397464630,12.60476325,135.29,135.24,11.91476325]
[1763397464816,12.60476325,135.29,135.25,11.91476325]
[1763397465023,0.69,135.28,135.25,11.91476325]
[1763397465211,12.60476325,135.28,135.24,11.91476325]
[1763397465412,0.69,135.28,135.24,11.91476325]
[1763397465619,0.69,135.28,135.25,11.91476325]
[1763397466300,0.69,135.28,135.26,11.91476325]
[1763397466739,0.69,135.28,135.24,11.91476325]
[1763397467527,0.69,135.28,135.2,32.56978769]
[1763397467829,0.69,135.28,135.24,11.91476325]
[1763397468530,0.69,135.28,135.25,11.91476325]
[1763397468717,0.69,135.28,135.26,11.91476325]
[1763397469538,18.81096,135.3,135.27,11.91476325]
[1763397469704,18.81096,135.3,135.28,11.91476325]
[1763397469900,0.69,135.34,135.29,11.91476325]
[1763397470134,0.69,135.33,135.32,11.91476325]
[1763397470316,0.69,135.33,135.29,11.91476325]
[1763397470517,17.14476325,135.33,135.28,11.91476325]
[1763397470834,5.23,135.33,135.3,11.91476325]
[1763397471015,0.69,135.32,135.31,11.91476325]
[1763397471331,0.69,135.34,135.31,11.91476325]
[1763397471632,0.69,135.34,135.32,11.91476325]
[1763397472305,12.60476325,135.34,135.29,11.91476325]
[1763397472509,11.91476325,135.33,135.29,11.91476325]
[1763397472723,12.60476325,135.33,135.29,11.91476325]
[1763397472943,12.60476325,135.32,135.28,11.91476325]
[1763397473308,0.69,135.31,135.28,11.91476325]
[1763397473710,0.69,135.31,135.27,11.91476325]
[1763397474212,12.60476325,135.31,135.27,11.91476325]
[1763397474632,0.69,135.3,135.26,11.91476325]
[1763397474816,0.69,135.3,135.27,11.91476325]
[1763397476433,0.69,135.3,135.28,11.91476325]
[1763397476927,0.69,135.34,135.29,11.91476325]
[1763397477130,18.81096,135.34,135.32,11.91476325]
[1763397477331,5.23,135.37,135.33,11.91476325]
[1763397477560,12.60476325,135.36,135.28,9.78882769]
[1763397477855,12.60476325,135.36,135.31,11.91476325]
[1763397477856,30.72572325,135.36,135.31,11.91476325]
[1763397478057,0.69,135.35,135.31,11.91476325]
[1763397478356,0.69,135.35,135.32,11.91476325]
[1763397478563,0.69,135.35,135.27,34.57572325]
[1763397478564,12.60476325,135.35,135.31,11.91476325]
[1763397479054,0.69,135.34,135.31,11.91476325]
[1763397479451,0.69,135.34,135.3,11.91476325]
[1763397479656,0.69,135.34,135.31,11.91476325]
[1763397479955,4.54,135.35,135.33,11.91476325]
[1763397480331,18.12096,135.36,135.33,11.91476325]
[1763397480528,0.69,135.35,135.32,11.91476325]
[1763397480733,0.89,135.41,135.34,11.91476325]
[1763397480936,0.89,135.41,135.39,11.91476325]
[1763397481159,0.2,135.41,135.4,11.91476325]
[1763397482461,0.2,135.41,135.39,11.91476325]
[1763397482462,0.89,135.41,135.39,11.91476325]
[1763397482762,0.69,135.4,135.36,11.91476325]
[1763397482933,9.78882769,135.37,135.27,12.01476325]
[1763397483138,11.91476325,135.36,135.31,11.91476325]
[1763397483345,0.69,135.36,135.33,11.91476325]
[1763397483557,0.69,135.35,135.31,11.91476325]
[1763397483756,11.91476325,135.32,135.27,11.91476325]
[1763397483959,11.91476325,135.32,135.22,0.1]
[1763397483960,18.12096,135.3,135.26,11.91476325]
[1763397484165,18.12096,135.3,135.21,4.54]
[1763397484461,30.03572325,135.26,135.21,11.91476325]
[1763397484855,0.69,135.25,135.21,11.91476325]
[1763397485059,18.12096,135.26,135.22,11.91476325]
[1763397485254,18.81096,135.26,135.22,11.91476325]
[1763397485430,0.69,135.25,135.22,11.91476325]
[1763397485835,12.60476325,135.25,135.2,11.91476325]
[1763397486063,0.69,135.25,135.2,11.91476325]
[1763397486253,0.69,135.24,135.2,11.91476325]
[1763397486559,0.69,135.24,135.19,11.91476325]
[1763397486560,26.24359094,135.23,135.19,11.91476325]
[1763397486810,11.91476325,135.22,135.14,4.54]
[1763397486984,0.69,135.22,135.18,11.91476325]
[1763397487140,4.54,135.23,135.2,11.91476325]
[1763397487463,11.91476325,135.25,135.2,11.91476325]
[1763397487464,21.70359094,135.25,135.2,11.91476325]
[1763397487643,0.69,135.23,135.2,11.91476325]
[1763397487842,9.78882769,135.25,135.21,11.91476325]
[1763397488050,0.69,135.24,135.21,11.91476325]
[1763397488370,33.55992914,135.36,135.23,11.91476325]
[1763397488540,11.91476325,135.29,135.21,22.66096]
[1763397488742,21.70359094,135.29,135.24,11.91476325]
[1763397488969,4.54,135.3,135.22,0.1]
[1763397489263,0.69,135.34,135.29,11.91476325]
[1763397489472,0.69,135.34,135.32,11.91476325]
[1763397489765,18.81096,135.34,135.32,11.91476325]
[1763397490140,0.69,135.33,135.27,11.91476325]
[1763397490361,0.69,135.33,135.31,11.91476325]
[1763397490579,18.81096,135.33,135.26,22.66096]
[1763397490786,21.70359094,135.32,135.28,11.91476325]
[1763397490986,9.78882769,135.3,135.26,11.91476325]
[1763397491187,0.69,135.29,135.21,4.54]
[1763397491480,0.69,135.29,135.27,11.91476325]
[1763397491694,22.66096,135.33,135.23,18.12096]
[1763397491695,0.72,135.32,135.23,18.12096]
[1763397491992,0.72,135.32,135.21,4.54]
[1763397491993,4.54,135.33,135.3,11.91476325]
[1763397492284,4.54,135.33,135.32,11.91476325]
[1763397492656,5.26,135.33,135.32,11.91476325]
[1763397493285,0.72,135.35,135.32,11.91476325]
[1763397493478,9.78882769,135.37,135.27,30.03572325]
[1763397493479,0.72,135.36,135.34,11.91476325]
[1763397493977,0.72,135.36,135.33,11.91476325]
[1763397496087,0.72,135.36,135.28,22.66096]
[1763397496267,0.72,135.36,135.35,11.91476325]
[1763397497153,0.72,135.36,135.34,11.91476325]
[1763397497485,0.72,135.36,135.35,11.91476325]
[1763397497986,5.26,135.38,135.35,11.91476325]
[1763397498194,4.74,135.41,135.37,11.91476325]
[1763397498362,0.72,135.4,135.39,11.91476325]
[1763397498982,0.72,135.4,135.38,11.91476325]
[1763397499163,0.72,135.4,135.39,11.91476325]
[1763397499775,9.78882769,135.39,135.26,0.1]
[1763397499975,9.78882769,135.37,135.35,11.91476325]
[1763397500184,14.32882769,135.37,135.35,11.91476325]
[1763397500373,0.72,135.36,135.34,11.91476325]
[1763397500570,0.72,135.36,135.3,18.12096]
[1763397500884,4.54,135.37,135.35,11.91476325]
[1763397501061,4.54,135.37,135.36,11.91476325]
[1763397501390,0.72,135.37,135.36,11.91476325]
[1763397501696,0.72,135.37,135.3,18.22096]
[1763397501987,4.54,135.4,135.36,11.91476325]
[1763397502159,0.2,135.41,135.36,0.1]
[1763397502359,0.92,135.41,135.4,11.91476325]
[1763397502589,0.2,135.41,135.4,11.91476325]
[1763397503358,0.2,135.41,135.4,16.55476325]
[1763397503582,0.2,135.47,135.42,18.12096]
[1763397503785,0.2,135.47,135.42,30.13572325]
[1763397504085,0.2,135.47,135.42,30.03572325]
[1763397504313,0.2,135.47,135.46,11.91476325]
[1763397504484,0.2,135.47,135.42,18.22096]
[1763397504485,0.72,135.46,135.42,18.12096]
[1763397504661,0.92,135.47,135.45,11.91476325]
[1763397504865,0.92,135.47,135.46,11.91476325]
[1763397505055,0.2,135.47,135.4,18.12096]
[1763397505257,18.12096,135.45,135.34,9.88882769]
[1763397505573,18.12096,135.45,135.43,11.91476325]
[1763397505773,0.72,135.44,135.43,11.91476325]
[1763397505992,9.78882769,135.43,135.36,11.91476325]
[1763397506203,9.78882769,135.43,135.3,0.1]
[1763397506204,9.78882769,135.41,135.3,0.1]
[1763397506404,21.70359094,135.39,135.27,12.01476325]
[1763397506586,21.70359094,135.37,135.33,11.91476325]
[1763397506901,0.72,135.38,135.35,11.91476325]
[1763397507205,0.72,135.37,135.29,18.12096]
[1763397507400,0.72,135.37,135.36,11.91476325]
[1763397507795,9.78882769,135.38,135.36,11.91476325]
[1763397507796,18.12096,135.38,135.36,11.91476325]
[1763397508103,27.90978769,135.4,135.37,11.91476325]
[1763397508285,4.54,135.41,135.39,11.91476325]
[1763397508492,0.72,135.4,135.36,11.91476325]
[1763397508798,0.72,135.4,135.32,4.54]
[1763397508989,0.72,135.4,135.32,4.64]
[1763397509608,0.72,135.4,135.39,11.91476325]
[1763397509807,4.54,135.41,135.39,11.91476325]
[1763397510005,0.72,135.43,135.4,11.91476325]
[1763397510188,0.72,135.43,135.42,11.91476325]
[1763397510503,0.2,135.47,135.42,11.91476325]
[1763397510710,0.2,135.47,135.46,11.91476325]
[1763397513203,0.2,135.47,135.42,18.22096]
[1763397513398,0.2,135.47,135.46,11.91476325]
[1763397513705,0.92,135.47,135.46,11.91476325]
[1763397513911,0.2,135.47,135.46,11.91476325]
[1763397514094,0.92,135.47,135.41,4.54]
[1763397514415,9.78882769,135.46,135.35,0.1]
[1763397514618,9.78882769,135.46,135.43,11.91476325]
[1763397514797,0.72,135.45,135.43,7.58150695]
[1763397514984,0.72,135.45,135.44,7.58150695]
[1763397515810,0.2,135.47,135.44,15.1630139]
[1763397515978,0.2,135.47,135.46,7.58150695]
[1763397518085,0.2,135.55,135.49,18.12096]
[1763397518289,0.2,135.55,135.54,7.58150695]
[1763397518510,0.92,135.55,135.54,7.58150695]
[1763397518687,0.2,135.55,135.54,7.58150695]
[1763397519604,0.2,135.57,135.53,4.54]
[1763397519605,0.2,135.57,135.56,7.58150695]
[1763397519810,0.2,135.61,135.56,7.58150695]
[1763397519992,0.2,135.61,135.54,9.78882769]
[1763397519993,0.2,135.61,135.6,7.58150695]
[1763397520184,0.2,135.61,135.6,15.1630139]
[1763397520387,0.2,135.61,135.6,7.58150695]
[1763397520787,0.2,135.61,135.55,18.12096]
[1763397520788,0.92,135.61,135.55,18.12096]
[1763397521008,9.78882769,135.6,135.57,7.58150695]
[1763397521214,18.09033464,135.6,135.52,18.12096]
[1763397521403,18.09033464,135.59,135.54,7.58150695]
[1763397521828,0.7,135.58,135.54,7.58150695]
[1763397522006,0.7,135.58,135.53,7.58150695]
[1763397522007,9.78882769,135.57,135.53,7.58150695]
[1763397522207,0.7,135.58,135.54,7.58150695]
[1763397522412,0.7,135.57,135.55,7.58150695]
[1763397522598,0.7,135.57,135.5,18.12096]
[1763397522795,0.7,135.57,135.54,7.58150695]
[1763397523000,0.7,135.57,135.53,7.58150695]
[1763397523190,8.28150695,135.57,135.52,7.58150695]
[1763397523509,8.28150695,135.57,135.54,7.58150695]
[1763397523510,0.7,135.57,135.54,7.58150695]
[1763397523713,0.7,135.56,135.55,7.58150695]
[1763397524221,5.24,135.6,135.55,7.58150695]
[1763397524384,0.7,135.59,135.55,7.58150695]
[1763397524587,0.7,135.59,135.52,7.58150695]
[1763397524588,7.58150695,135.57,135.52,7.58150695]
[1763397524784,10.48882769,135.56,135.51,7.58150695]
[1763397525018,10.48882769,135.56,135.47,4.54]
[1763397525019,18.07033464,135.56,135.47,4.54]
[1763397525197,9.78882769,135.54,135.5,7.58150695]
[1763397525395,9.78882769,135.54,135.51,7.58150695]
[1763397525687,9.78882769,135.54,135.5,7.58150695]
[1763397525688,0.7,135.53,135.5,7.58150695]
[1763397526517,0.7,135.53,135.51,7.58150695]
[1763397526727,18.12096,135.57,135.52,7.58150695]
[1763397526922,0.7,135.56,135.54,7.58150695]
[1763397527218,0.7,135.56,135.55,7.58150695]
[1763397527600,0.7,135.56,135.54,7.58150695]
[1763397528013,9.78882769,135.55,135.47,4.54]
[1763397528230,9.78882769,135.51,135.44,7.58150695]
[1763397528405,9.78882769,135.51,135.48,7.58150695]
[1763397528610,0.7,135.5,135.47,7.58150695]
[1763397528922,9.78882769,135.49,135.41,4.54]
[1763397529223,18.12096,135.53,135.41,4.54]
[1763397529224,0.7,135.57,135.48,15.1630139]
[1763397529424,0.7,135.57,135.56,7.58150695]
[1763397529629,0.7,135.59,135.56,7.58150695]
[1763397529924,0.7,135.59,135.58,7.58150695]
[1763397530500,10.48882769,135.59,135.46,0.7382253]
[1763397530706,0.7,135.58,135.56,7.58150695]
[1763397530907,9.78882769,135.57,135.53,7.58150695]
[1763397531338,0.7,135.56,135.53,7.58150695]
[1763397532139,0.7,135.56,135.54,7.58150695]
[1763397532533,0.7,135.56,135.55,7.58150695]
[1763397532710,18.82096,135.58,135.55,7.58150695]
[1763397532911,0.7,135.57,135.56,7.58150695]
[1763397533131,0.7,135.57,135.48,18.12096]
[1763397533433,9.78882769,135.56,135.54,7.58150695]
[1763397533809,0.7,135.55,135.44,7.58150695]
[1763397534140,0.7,135.55,135.53,7.58150695]
[1763397534840,0.7,135.55,135.54,7.58150695]
[1763397535418,0.7,135.55,135.53,7.58150695]
[1763397535625,18.82096,135.55,135.53,7.58150695]
[1763397536054,0.7,135.54,135.53,7.58150695]
[1763397538738,0.7,135.54,135.47,18.12096]
[1763397538921,0.7,135.54,135.53,7.58150695]
[1763397540058,0.7,135.56,135.53,7.58150695]
[1763397540222,0.7,135.56,135.48,18.12096]
[1763397540433,18.12096,135.51,135.49,7.58150695]
[1763397540733,9.78882769,135.5,135.48,7.58150695]
[1763397540941,4.54,135.52,135.49,7.58150695]
[1763397541246,4.54,135.52,135.51,7.58150695]
[1763397541247,0.7,135.52,135.51,7.58150695]
[1763397541436,0.7,135.52,135.47,18.12096]
[1763397541752,0.7,135.52,135.51,7.58150695]
[1763397542130,0.7,135.52,135.48,7.58150695]
[1763397542131,9.78882769,135.51,135.48,7.58150695]
[1763397542326,9.78882769,135.47,135.45,7.58150695]
[1763397542530,9.78882769,135.47,135.39,0.1]
[1763397542531,14.32882769,135.47,135.43,7.58150695]
[1763397542731,0.7,135.46,135.43,7.58150695]
[1763397544060,0.7,135.46,135.45,7.58150695]
[1763397544226,22.25,135.51,135.45,7.58150695]
[1763397544227,0.7,135.5,135.45,7.58150695]
[1763397544426,0.7,135.5,135.49,7.58150695]
[1763397544663,4.54,135.51,135.49,7.58150695]
[1763397544857,5.24,135.51,135.5,7.58150695]
[1763397545069,0.7,135.51,135.5,7.58150695]
[1763397545238,0.7,135.5,135.49,7.58150695]
[1763397545758,0.7,135.5,135.48,7.58150695]
[1763397545936,0.7,135.5,135.44,7.58150695]
[1763397546134,0.7,135.5,135.49,7.58150695]
[1763397546354,0.7,135.53,135.49,7.58150695]
[1763397546559,0.7,135.56,135.52,7.58150695]
[1763397546746,0.7,135.56,135.55,7.58150695]
[1763397547058,0.7,135.56,135.53,7.58150695]
[1763397547236,18.82096,135.56,135.52,7.58150695]
[1763397547440,18.82096,135.56,135.48,18.12096]
[1763397547640,0.7,135.55,135.53,7.58150695]
[1763397547848,27.90978769,135.54,135.5,7.58150695]
[1763397548056,27.90978769,135.54,135.52,7.58150695]
[1763397548057,18.82096,135.53,135.52,7.58150695]
[1763397548646,27.90978769,135.52,135.48,7.58150695]
[1763397548863,28.60978769,135.52,135.5,7.58150695]
[1763397549040,0.7,135.51,135.5,7.58150695]
[1763397549240,0.7,135.51,135.49,7.58150695]
[1763397549640,9.78882769,135.5,135.4,4.54]
[1763397549838,17.37033464,135.5,135.39,0.1]
[1763397550164,0.7,135.49,135.47,7.58150695]
[1763397550456,0.7,135.49,135.48,7.58150695]
[1763397550977,18.82096,135.52,135.48,7.58150695]
[1763397551163,0.7,135.51,135.44,7.58150695]
[1763397551465,18.82096,135.51,135.42,18.12096]
[1763397551640,18.82096,135.51,135.44,7.58150695]
[1763397551835,0.72,135.5,135.48,7.58150695]
[1763397552651,0.72,135.53,135.49,7.58150695]
[1763397552843,18.12096,135.52,135.51,7.58150695]
[1763397553051,0.72,135.53,135.51,7.58150695]
[1763397553275,0.72,135.53,135.47,18.12096]
[1763397553559,0.72,135.53,135.52,7.58150695]
[1763397553744,0.72,135.53,135.47,18.12096]
[1763397553948,0.72,135.53,135.52,7.58150695]
[1763397554345,4.54,135.55,135.52,7.58150695]
[1763397554559,9.78882769,135.57,135.47,18.12096]
[1763397554871,0.72,135.56,135.54,7.58150695]
[1763397555062,0.72,135.56,135.55,7.58150695]
[1763397555445,0.72,135.56,135.54,7.58150695]
[1763397555640,0.72,135.56,135.47,18.12096]
[1763397555641,0.72,135.56,135.55,7.58150695]
[1763397555849,0.72,135.56,135.54,7.58150695]
[1763397556260,0.72,135.56,135.53,7.58150695]
[1763397556466,0.72,135.56,135.54,7.58150695]
[1763397556657,0.72,135.56,135.55,7.58150695]
[1763397556839,0.72,135.56,135.54,7.58150695]
[1763397557044,0.72,135.56,135.55,7.58150695]
[1763397557263,0.7,135.59,135.55,7.58150695]
[1763397557446,0.2,135.61,135.58,7.58150695]
[1763397557447,0.9,135.61,135.58,7.58150695]
[1763397557758,0.7,135.6,135.59,7.58150695]
[1763397557961,0.2,135.61,135.59,7.58150695]
[1763397558143,0.9,135.61,135.59,7.58150695]
[1763397558543,0.7,135.6,135.58,7.58150695]
[1763397558740,0.2,135.61,135.58,7.58150695]
[1763397558973,0.7,135.68,135.6,15.1630139]
[1763397559269,0.7,135.68,135.64,7.58150695]
[1763397559569,0.7,135.7,135.64,7.58150695]
[1763397559945,0.7,135.7,135.69,7.58150695]
[1763397560446,18.12096,135.67,135.55,0.73773515]
[1763397560670,0.7,135.7,135.66,7.58150695]
[1763397560978,4.72,135.71,135.63,7.58150695]
[1763397560979,9.78882769,135.66,135.63,7.58150695]
[1763397561280,9.78882769,135.64,135.6,7.58150695]
[1763397561644,0.7,135.63,135.56,18.12096]
[1763397561843,0.7,135.63,135.61,7.58150695]
[1763397562070,0.7,135.63,135.56,18.12096]
[1763397562271,18.82096,135.65,135.62,7.58150695]
[1763397562475,18.82096,135.65,135.63,7.58150695]
[1763397562659,0.7,135.64,135.63,7.58150695]
[1763397563351,7.36924903,135.7,135.63,7.58150695]
[1763397563352,0.7,135.67,135.63,7.58150695]
[1763397563552,0.7,135.67,135.66,7.58150695]
[1763397563972,7.78150695,135.71,135.66,15.1630139]
[1763397563973,0.2,135.71,135.66,15.1630139]
[1763397564148,9.94843435,135.84,135.65,4.52]
[1763397564149,0.7,135.79,135.7,25.70246695]
[1763397564351,4.52,135.82,135.74,7.58150695]
[1763397564352,0.7,135.81,135.74,7.58150695]
[1763397564547,0.7,135.8,135.71,9.78882769]
[1763397564758,0.7,135.8,135.74,7.58150695]
[1763397565140,0.7,135.8,135.72,18.12096]
[1763397565141,0.7,135.8,135.73,9.78882769]
[1763397565346,4.52,135.82,135.74,15.1630139]
[1763397565563,0.7,135.83,135.81,7.58150695]
[1763397565768,0.7,135.83,135.82,7.58150695]
[1763397566358,0.7,135.83,135.76,7.58150695]
[1763397566676,0.7,135.83,135.69,0.73697398]
[1763397566677,18.82096,135.83,135.79,7.58150695]
[1763397566873,9.78882769,135.82,135.74,18.12096]
[1763397567072,10.48882769,135.82,135.79,7.58150695]
[1763397567371,18.82096,135.81,135.79,7.58150695]
[1763397567752,9.78882769,135.85,135.74,18.12096]
[1763397567753,0.7,135.8,135.76,7.58150695]
[1763397567953,0.7,135.8,135.79,7.58150695]
[1763397568952,0.7,135.8,135.78,7.58150695]
[1763397569350,0.7,135.8,135.71,18.12096]
[1763397569973,0.7,135.8,135.72,9.78882769]
[1763397570285,0.7,135.9,135.82,18.12096]
[1763397570461,0.7,135.9,135.89,7.58150695]
[1763397570847,0.7,135.93,135.89,7.58150695]
[1763397571051,0.7,135.93,135.85,18.12096]
[1763397571052,0.7,135.93,135.92,7.58150695]
[1763397571352,4.52,135.98,135.87,18.12096]
[1763397571567,0.7,135.94,135.93,7.58150695]
[1763397572173,0.7,135.94,135.87,18.12096]
[1763397572369,0.7,135.94,135.93,7.58150695]
[1763397572950,0.7,135.97,135.93,7.58150695]
[1763397573155,0.7,135.97,135.87,18.12096]
[1763397573156,0.7,135.96,135.95,7.58150695]
[1763397573557,0.7,135.96,135.89,18.12096]
[1763397573859,0.7,135.96,135.84,7.58150695]
[1763397573860,7.58150695,135.93,135.88,7.58150695]
[1763397574064,32.42978769,135.92,135.86,7.58150695]
[1763397574282,9.78882769,135.89,135.85,7.58150695]
[1763397574489,9.78882769,135.89,135.87,7.58150695]
[1763397574490,27.90978769,135.89,135.87,7.58150695]
[1763397574797,0.7,135.91,135.88,7.58150695]
[1763397574961,0.7,135.91,135.9,7.58150695]
[1763397575785,4.52,135.92,135.9,7.58150695]
[1763397575990,0.7,135.94,135.87,18.12096]
[1763397576189,0.7,135.94,135.93,7.58150695]
[1763397576563,9.78882769,135.93,135.84,8.31766713]
[1763397576758,27.90978769,135.93,135.9,13.10796858]
[1763397576995,27.90978769,135.93,135.83,4.52]
[1763397576996,9.78882769,135.91,135.83,4.52]
[1763397577180,14.30882769,135.91,135.87,13.10796858]
[1763397577494,0.7,135.9,135.88,13.10796858]
[1763397578664,0.7,135.9,135.87,13.10796858]
[1763397578872,22.64096,135.91,135.89,13.10796858]
[1763397579184,23.34096,135.91,135.9,13.10796858]
[1763397579367,0.7,135.9,135.88,13.10796858]
[1763397580168,9.78882769,135.89,135.85,13.10796858]
[1763397580368,18.82096,135.9,135.88,13.10796858]
[1763397580677,0.7,135.89,135.88,13.10796858]
[1763397580893,0.7,135.89,135.83,18.12096]
[1763397581071,9.78882769,135.87,135.84,13.10796858]
[1763397581270,31.92892858,135.89,135.86,13.10796858]
[1763397581271,0.7,135.89,135.86,13.10796858]
[1763397581474,0.7,135.89,135.88,13.10796858]
[1763397582471,0.7,135.91,135.88,13.10796858]
[1763397582799,4.52,135.92,135.89,13.10796858]
[1763397583001,9.78882769,135.91,135.88,13.10796858]
[1763397583170,10.48882769,135.91,135.87,13.10796858]
[1763397583370,22.89679627,135.89,135.84,13.10796858]
[1763397583669,9.78882769,135.87,135.84,13.10796858]
[1763397583869,27.90978769,135.87,135.83,13.10796858]
[1763397584069,4.52,135.88,135.86,13.10796858]
[1763397584567,10.48882769,135.87,135.85,13.10796858]
[1763397584784,9.78882769,135.86,135.8,18.12096]
[1763397585070,0.7,135.86,135.85,13.10796858]
[1763397585269,0.7,135.86,135.8,18.12096]
[1763397585472,0.7,135.86,135.85,13.10796858]
[1763397586379,4.52,135.88,135.85,13.10796858]
[1763397586703,0.7,135.88,135.87,13.10796858]
[1763397587503,0.7,135.88,135.86,13.10796858]
[1763397587671,0.7,135.88,135.8,17.62796858]
[1763397587878,4.52,135.87,135.84,13.10796858]
[1763397588097,4.52,135.87,135.77,4.52]
[1763397588273,5.22,135.87,135.84,13.10796858]
[1763397588783,4.52,135.87,135.85,13.10796858]
[1763397588985,4.52,135.87,135.86,13.10796858]
[1763397589501,0.7,135.9,135.86,13.10796858]
[1763397589698,0.7,135.9,135.81,4.52]
[1763397589699,0.7,135.9,135.87,13.10796858]
[1763397592399,0.7,135.9,135.88,13.10796858]
[1763397592710,0.7,135.9,135.87,13.10796858]
[1763397592887,0.7,135.9,135.81,4.52]
[1763397592888,22.89679627,135.89,135.84,13.10796858]
[1763397593079,4.52,135.88,135.85,13.10796858]
[1763397593272,4.52,135.88,135.87,13.10796858]
[1763397593880,5.22,135.88,135.87,13.10796858]
[1763397594081,4.52,135.88,135.82,4.52]
[1763397594406,4.52,135.88,135.87,13.10796858]
[1763397594606,0.7,135.92,135.87,13.10796858]
[1763397594904,4.52,135.93,135.82,4.52]
[1763397594905,0.7,135.91,135.89,13.10796858]
[1763397595279,0.7,135.91,135.88,13.10796858]
[1763397597210,0.7,135.91,135.89,13.10796858]
[1763397597711,0.7,135.91,135.8,13.10796858]
[1763397597712,0.7,135.98,135.93,18.12096]
[1763397597889,0.7,135.98,135.97,13.10796858]
[1763397598092,4.52,136.03,135.97,13.10796858]
[1763397598301,0.2,136.06,136.02,13.10796858]
[1763397598506,0.9,136.06,136.05,13.10796858]
[1763397598903,0.9,136.06,135.98,18.12096]
[1763397598904,0.9,136.06,136.04,13.10796858]
[1763397599102,0.7,136.05,135.97,18.12096]
[1763397599328,9.78882769,136.04,136.0,13.10796858]
[1763397599820,0.7,136.03,136.0,13.10796858]
[1763397600002,0.7,136.03,135.97,18.12096]
[1763397600204,9.78882769,136.02,135.85,0.73610599]
[1763397600428,0.7,136.03,136.01,13.10796858]
[1763397600735,0.7,136.03,135.94,18.12096]
[1763397600736,4.52,136.04,136.02,13.10796858]
[1763397600916,0.2,136.06,136.03,13.10796858]
[1763397601120,0.2,136.06,136.05,13.10796858]
[1763397601798,0.9,136.06,135.94,18.12096]
[1763397601997,0.9,136.06,136.02,13.10796858]
[1763397602312,0.2,136.06,136.05,13.10796858]
[1763397602820,0.2,136.06,136.02,4.52]
[1763397603023,0.2,136.06,136.05,13.10796858]
[1763397603923,0.9,136.06,136.01,4.52]
[1763397604106,0.7,136.05,136.04,13.10796858]
[1763397604825,0.7,136.05,136.03,13.10796858]
[1763397605436,0.2,136.06,136.04,13.10796858]
[1763397605745,0.2,136.06,136.0,18.12096]
[1763397605746,0.2,136.06,136.05,13.10796858]
[1763397607109,0.9,136.06,136.05,13.10796858]
[1763397607835,0.9,136.06,135.98,4.52]
[1763397608033,0.7,136.05,136.03,13.10796858]
[1763397608342,9.78882769,136.04,136.0,13.10796858]